Workbook

Sheet BOQ
A1: LEGEND | B1: COST TO CONSTRUCT | H1: Markup | I1: ='Estimate Markup'!C37 -> 4.171 | O1: PS | P1: PC
B2: OFFER TO CLIENT | E2: COST TO CONSTRUCT | H2: OFFER TO CLIENT | O2: =SUM(M3:M57) -> 5,000,000.00 | P2: =SUM(N3:N57) -> 7,500,000.00
A4: CODE | B4: DESCRIPTION | C4: QTY | D4: UNIT | E4: RATE | F4: AMOUNT | H4: RATE | I4: AMOUNT
A6: 1.00 | B6: BUILDING WORKS
B8: 1.5 EXCAVATION AND FILLING
B9: FILLING
A10: 1.5.12.2.1.1 | B10: Imported filling, bed not exceeding 500mm deep, 350mm thick, leveled to falls in foundation | C10: 365 | D10: m3 | E10: ='11 Laterite Fillings'!D50 -> 1,170.00 | F10: =E10*C10 -> 427,050.00 | H10: =ROUND(E10*$I$1,0) -> 4,880.00 | I10: =H10*C10 -> 1,781,200.00
B12: 1.11 INSITU CONCRETE WORKS
A13: 1.11.1.1.2/1 | B13: Mass Concrete; 250mm thick; In trench filling; Poured on or against earth or unblinded hard core | C13: 400 | D13: m3 | E13: ='08 Concrete'!E35 -> 42,785.20 | F13: =E13*C13 -> 17,114,079.59 | H13: =ROUND(E13*$I$1,0) -> 178,457.00 | I13: =H13*C13 -> 71,382,800.00
B15: 1.14 MASONRY
B16: Brick/Blockwalling, Glass Walling, Natural Stone Rubble Walling
A17: 1.14.1.2.4.1 | B17: Walls; 225mm thickness Hollow sandcrete block in foundation jointed with mortar ratio 1:6 | C17: 4065 | D17: m2 | E17: ='10 Blockworks'!E50 -> 8,425.75 | F17: =E17*C17 -> 34,250,679.41 | H17: =ROUND(E17*$I$1,0) -> 35,144.00 | I17: =H17*C17 -> 142,860,360.00
A19: 1.14.1.2.4.1 | B19: Walls; 150mm thickness Hollow sandcrete block in superstructure jointed with mortar ratio 1:6 | C19: 2500 | D19: m2 | E19: ='10 Blockworks'!K42 -> 3,766.16 | F19: =E19*C19 -> 9,415,405.33 | H19: =ROUND(E19*$I$1,0) -> 15,709.00 | I19: =H19*C19 -> 39,272,500.00
B21: 1.23 WINDOWS, SCREENS AND LIGHTS
B22: WINDOWS
A23: 1.23.1.1.0 | B23: Aluminium Windows and Window frames, 1.5x1.5m high) finished with 5mm thick tinted glass, fixed to pre-installed 25mm square pipe subframe burined in concrete/blockworks | C23: 86.00 | D23: nr | E23: ='04 Subcontract'!I10 -> 253,991.50 | F23: =E23*C23 -> 21,843,269.00 | H23: =ROUND(E23*$I$1,0) -> 1,059,399.00 | I23: =H23*C23 -> 91,108,314.00
B25: 1.26 METAL WORK
A26: 1.26.2.1.0.2 | B26: General Metal work members, 25mm square pipe subframe; 1.5x1.5m high, buried in concrete/blockworks with cement moratr 1:5 | C26: =C23 -> 86.00 | D26: nr | E26: ='04 Subcontract'!I13 -> 15,032.15 | F26: =E26*C26 -> 1,292,764.90 | H26: =ROUND(E26*$I$1,0) -> 62,699.00 | I26: =H26*C26 -> 5,392,114.00
A29: 2.00 | B29: CIVIL/INDUSTRIAL ENGINEERING WORKS AND THE LIKES
A31: 2A | B31: GENERAL ITEMS
B32: Provisional Sum
A33: 2A1.5.1 | B33: Provisional Sums for Site Engineers representatives accommodation (N5,000,000). | D33: Sum | I33: 5,000,000.00 | M33: =I33 -> 5,000,000.00
B35: Prime Cost
A36: 2A1.5.1 | B36: Nominated Sub-contracts which include work on the Site, Prime Cost for provision and installation of Road Markings and Signages as required. (N7,500,000) | D36: Sum | I36: 7,500,000.00 | N36: =I36 -> 7,500,000.00
A38: 2A1.5.4 | B38: Other charges and profit | D38: Sum | I38: =(I36*7.5%) -> 562,500.00
A40: 2D | B40: DEMOLITION AND SITE CLEARANCE
A41: 2D1.5.1.15 | B41: Other structures; no predominant material, Volume not exceeding 50m3 | D41: Sum | F41: ='12 Road Scarify'!C23 -> 55,000.00 | I41: =ROUND(F41*$I$1,0) -> 229,405.00
A43: 2E | B43: EARTHWORKS
A44: 2E1.6.3.5 | B44: Filling; Imported natural material other than topsoil or rock | C44: 6000 | D44: m3 | E44: ='11 Laterite Fillings'!D50 -> 1,170.00 | F44: =E44*C44 -> 7,020,000.00 | H44: =ROUND(E44*$I$1,0) -> 4,880.00 | I44: =H44*C44 -> 29,280,000.00
A46: 2T | B46: ROADS AND PAVINGS
A47: 2T1.3.2.2 | B47: Bituminous bound pavements; Hot Rolled asphalt binder, Depth 30-60mm | C47: 3000 | D47: m2 | E47: ='09 Asphalt Binder'!C40 -> 5,428.90 | F47: =E47*C47 -> 16,286,704.29 | H47: =ROUND(E47*$I$1,0) -> 22,644.00 | I47: =H47*C47 -> 67,932,000.00
A49: 2T1.0.10.0 | B49: Separation and waterproof membrane using MC1 bitumenous emulsion applied at the rate of 1.3L/m2 | C49: =C47 -> 3000 | D49: m2 | E49: ='13 Prime Coat'!D37 -> 622.20 | F49: =E49*C49 -> 1,866,612.50 | H49: =ROUND(E49*$I$1,0) -> 2,595.00 | I49: =H49*C49 -> 7,785,000.00
B51: Subtotal 1 | F51: =SUM(F5:F50) -> 109,571,565.01 | I51: =SUM(I5:I50) -> 470,086,193.00
B52: Contigency | C52: 5.0% | I52: =$I$51*C52 -> 23,504,309.65
B53: Variation of Prices | C53: 5.0% | I53: =$I$51*C53 -> 23,504,309.65
B54: Subtotal 2 | I54: =SUM(I51:I53) -> 517,094,812.30
B55: VAT | C55: 7.5% | I55: =$I$54*C55 -> 38,782,110.92
B56: TOTAL | I56: =SUM(I54:I55) -> 555,876,923.22

Sheet Estimate Markup
B1: Project Staff | D1: ='05 Built-in Preliminaries'!G45 -> 14,080,000.00
B2: Site Accommodation | D2: ='05 Built-in Preliminaries'!G46 -> 9,200,000.00
B3: Transportation | D3: ='05 Built-in Preliminaries'!G47 -> 12,137,500.00
B4: Scaffolding/Shuttering | D4: ='05 Built-in Preliminaries'!G48 -> 37,200,000.00
B5: Site Equipment | D5: ='05 Built-in Preliminaries'!G49 -> 72,925,000.00
B6: Insurance & Bond | D6: ='05 Built-in Preliminaries'!G50 -> 12,905,300.00
B7: Total In-built Preliminaries | D7: =SUM(D1:D6)*E7 -> 158,447,800.00 | E7: 100%
B8: Actual Measured Works | D8: =BOQ!F51 -> 109,571,565.01
B9: Total Cost | D9: =D8+D7 -> 268,019,365.01
B10: ADD-Ons
B11: Management | C11: 1.00% | E11: =C11*$D$22 -> 4,393,760.08
B12: Overhead | C12: 3.50% | E12: =C12*$D$22 -> 15,378,160.29
B13: Profit | C13: 12.50% | E13: =C13*$D$22 -> 54,922,001.03
B14: Risks | C14: 15.00% | E14: 65,906,401.23
B15: PR | C15: 0.00% | E15: 0
B16: WHT | C16: 5.00% | E16: 21,968,800.41
B17: Stamp duty | C17: 1.00% | E17: 4,393,760.08
B18: As Built Design | C18: 1.00% | E18: =C18*$D$22 -> 4,393,760.08
B19: TOTAL | C19: =SUM(C11:C18) -> 39.00% | E19: =SUM(E11:E18) -> 171,356,643.21
B20: Cost escalation without Profit | C20: =ROUND(1/(1-(C19-C13)),3) -> 1.361
B21: Cost escalation with Profit | C21: =ROUND(1/(1-C19),3) -> 1.639
C22: Offer | D22: =ROUND(D9/(1-C19),2) -> 439,376,008.22 | E22: Assumed Cost for Loan of N50,000,000 @ 26%
B23: ADD KNOWN Cost of Finance | D23: =E23*C20 -> 17,693,000.00 | E23: =50000000*26% -> 13,000,000.00
D24: =SUM(D22:D23) -> 457,069,008.22
C26: Prime Cost | D26: =BOQ!P2 -> 7,500,000.00
B27: 7.5% | C27: PC Attendance | D27: =B27*D26 -> 562,500.00
C28: Provisional Sum | D28: =BOQ!O2 -> 5,000,000.00
D30: =SUM(D24:D29) -> 470,131,508.22 | E30: AMOUNT IN BOQ
B31: Contingency | C31: 5.00% | D31: =C31*$D$30 -> 23,506,575.41 | E31: =BOQ!I52 -> 23,504,309.65 | F31: =E31-D31 -> -2,265.76 | G31: =F31/E31 -> -0.01%
B32: Variation Of Prices | C32: 5.00% | D32: =C32*$D$30 -> 23,506,575.41 | E32: =BOQ!I53 -> 23,504,309.65 | F32: =E32-D32 -> -2,265.76 | G32: =F32/E32 -> -0.01%
B33: SUBTOTAL (EXCLUDING VAT) | D33: =SUM(D30:D32) -> 517,144,659.04
B34: VAT | C34: 7.50% | D34: =C34*$D$33 -> 38,785,849.43 | E34: =BOQ!I55 -> 38,782,110.92 | F34: -3,738.51 | G34: =F34/E34 -> -0.01%
D35: =SUM(D33:D34) -> 555,930,508.47 | E35: =BOQ!I56 -> 555,876,923.22 | F35: =E35-D35 -> -53,585.25 | G35: =F35/E35 -> -0.01%
B37: Project Markup Factor | C37: =ROUND(D24/D8,3) -> 4.171

Sheet 01 Material Prices
A1: S/NO | B1: MATERIAL PRICES | C1: AMOUNT | D1: UNIT | G1: Vendor Price Adjustment
A2: 1.0 | B2: CEMENT N / TON | C2: =C3*20 -> 75,712.5 | D2: COST / TON | G2: Material Supplied to Site | I2: 225 | J2: 150
A3: 2.0 | B3: CEMENT N / BAG | C3: =I17 -> 3,785.6 | D3: COST / BAG | F3: 1 | G3: Suppply 225mm Sandcrete Block | I3: 230 | J3: 190
A4: 3.0 | B4: CHIPPINGS | C4: 12,500.0 | D4: COST / M3 | G4: Transportation | I4: 5 | J4: 5
A5: 4.0 | B5: SAND | C5: 3,000.0 | D5: =D4 -> COST / M3 | G5: Loading & Offloading | I5: 5 | J5: 5
A6: 5.0 | B6: STONE DUST | C6: 12,500.0 | D6: =D4 -> COST / M3 | G6: Subtotal | I6: =SUM(I3:I5) -> 240.0 | J6: =SUM(J3:J5) -> 200.0
A7: 6.0 | B7: STONE BASE | C7: 10,353.0 | D7: =D4 -> COST / M3 | G7: VAT | H7: 7.50% | I7: =I6*H7 -> 18 | J7: =J6*H7 -> 15
A8: 7.0 | B8: HARD CORE | C8: 10,370.0 | D8: =D5 -> COST / M3 | G8: WHT | H8: 5.00% | I8: =I6*H8 -> 12 | J8: =J6*H8 -> 10
A9: 8.0 | B9: 225 BLOCK | C9: =I9 -> 270.0 | D9: COST / BLOCK | I9: =SUM(I6:I8) -> 270.0 | J9: =SUM(J6:J8) -> 225.0
A10: 9.0 | B10: 150 BLOCK | C10: =J9 -> 225.0 | D10: COST / BLOCK
A11: 10.0 | B11: KEROSENE | C11: 270.0 | D11: LT | F11: 2 | G11: Suppply of 50kg Bag of Cement | I11: 3350
A12: 11.0 | B12: FUEL | C12: 145.0 | D12: LT | G12: Transportation | I12: 10
A13: 12.0 | B13: BITUMEN | C13: 395,000.0 | D13: TON | G13: Loading & Offloading | I13: 5
G14: Subtotal | I14: =SUM(I11:I13) -> 3,365.0
G15: VAT | H15: 7.50% | I15: =I14*H15 -> 252.375
G16: WHT | H16: 5.00% | I16: =I14*H16 -> 168.25
I17: =SUM(I14:I16) -> 3,785.6

Sheet 02 Equipment
A1: EQUIPMENT | B1: PRICE (CFI, Lagos) | C1: CUSTOM DUTY (%) | D1: COST OF DUTY | E1: TOTAL COST | F1: COST IN NAIRA ($1/N380) | G1: EQUIPMENT LIFESPAN | H1: DEPRECIATION | I1: FUEL CONSUMPTION | J1: COST OF FUEL | K1: MAINTENANCE 35% OF DEPRE. | L1: FUEL COST / DAY | M1: LUB 8% OF FUEL | N1: DAILY COST | O1: OPERATOR | P1: TOTAL COST | R1: S/NO | S1: RENTED EQUIPMENT` | T1: RENTAL COST/ DAY (8 HRS) | U1: FUEL COST / DAY | V1: OPERATOR COST/DY | W1: TOTAL COST/DAY | Z1: EQUIPMENT COST/ DAY (8 HRS)
A2: Asphalt Paver (2.5m) | B2: 250,000.00 | C2: 0.08 | D2: =C2*B2 -> 20,300.00 | E2: =D2+B2 -> 270,300.00 | F2: =E2*380 -> 102,714,000.00 | G2: 7.00 | H2: =F2/(G2*12*25) -> 48,911.43 | I2: 162.00 | J2: 270.00 | K2: =H2*35% -> 17,119.00 | L2: =J2*I2 -> 43,740.00 | M2: =L2*8% -> 3,499.20 | N2: =M2+L2+K2+H2 -> 113,269.63 | O2: 10,000.00 | P2: =O2+N2 -> 123,269.63 | R2: 1 | S2: Asphalt Paver (2.5m) | T2: =ROUND(Z2,-3) -> 82,000.00 | U2: =L2 -> 43,740.00 | V2: 10,000.00 | W2: =T2+U2+V2 -> 135,740.00 | Z2: 81,871.39
A3: Backhoe Loader | B3: 100,000.00 | C3: 0.08 | D3: =C3*B3 -> 8,120.00 | E3: =D3+B3 -> 108,120.00 | F3: =E3*380 -> 41,085,600.00 | G3: 7.00 | H3: =F3/(G3*12*25) -> 19,564.57 | I3: 90.00 | J3: 270.00 | K3: =H3*35% -> 6,847.60 | L3: =J3*I3 -> 24,300.00 | M3: =L3*8% -> 1,944.00 | N3: =M3+L3+K3+H3 -> 52,656.17 | O3: 10,000.00 | P3: =O3+N3 -> 62,656.17 | R3: 2 | S3: Backhoe Loader | T3: =ROUND(Z3,-3) -> 37,000.00 | U3: =L3 -> 24,300.00 | V3: 10,000.00 | W3: =T3+U3+V3 -> 71,300.00 | Z3: 36,920.85
A4: Bitumen Sprayer | B4: 174,609.75 | C4: 0.08 | D4: 14,178.31 | E4: 188,788.07 | F4: 71,739,464.75 | G4: 7.00 | H4: 34,161.65 | I4: 100.00 | J4: 270.00 | K4: 11,956.58 | L4: 27,000.00 | M4: 2,160.00 | N4: 75,278.23 | O4: 10,000.00 | P4: 85,278.23 | R4: 3 | S4: Bitumen Sprayer | T4: 48,000.00 | U4: 27,000.00 | V4: 10,000.00 | W4: 85,000.00 | Z4: 47,802.82
A5: CAT Bulldozer D9 | B5: 666,667.00 | C5: 0.08 | D5: 54,133.36 | E5: 720,800.36 | F5: 273,904,136.95 | G5: 7.00 | H5: 130,430.54 | I5: 468.00 | J5: 270.00 | K5: 45,650.69 | L5: 126,360.00 | M5: 10,108.80 | N5: 312,550.03 | O5: 10,000.00 | P5: 322,550.03 | R5: 4 | S5: CAT Bulldozer D9 | T5: 236,000.00 | U5: 126,360.00 | V5: 10,000.00 | W5: 372,360.00 | Z5: 236,119.45
A6: Cement Silos | B6: 10,000.00 | C6: 0.23 | D6: 2,312.00 | E6: 12,312.00 | F6: 4,678,560.00 | G6: 5.00 | H6: 3,119.04 | I6: 0.00 | J6: 270.00 | K6: 1,091.66 | L6: 0.00 | M6: 0.00 | N6: 4,210.70 | O6: 10,000.00 | P6: 14,210.70 | R6: 5 | S6: Cement Silos | T6: 2,000.00 | U6: 0.00 | V6: 10,000.00 | W6: 12,000.00 | Z6: 1,702.13
A7: Compressor 7Bar | B7: 30,000.00 | C7: 0.13 | D7: 3,936.00 | E7: 33,936.00 | F7: 12,895,680.00 | G7: 5.00 | H7: 8,597.12 | I7: 123.00 | J7: 270.00 | K7: 3,008.99 | L7: 33,210.00 | M7: 2,656.80 | N7: 47,472.91 | O7: 10,000.00 | P7: 57,472.91 | R7: 6 | S7: Compressor 7Bar | T7: 41,000.00 | U7: 33,210.00 | V7: 10,000.00 | W7: 84,210.00 | Z7: 40,558.45
A8: Double Drum Roller 10Ton | B8: 110,000.00 | C8: 0.08 | D8: 8,932.00 | E8: 118,932.00 | F8: 45,194,160.00 | G8: 7.00 | H8: 21,521.03 | I8: 100.00 | J8: 270.00 | K8: 7,532.36 | L8: 27,000.00 | M8: 2,160.00 | N8: 58,213.39 | O8: 10,000.00 | P8: 68,213.39 | R8: 7 | S8: Double Drum Roller 10Ton | T8: 41,000.00 | U8: 27,000.00 | V8: 10,000.00 | W8: 78,000.00 | Z8: 40,904.54
A9: Double Drum Roller 8Ton | B9: 90,000.00 | C9: 0.08 | D9: 7,308.00 | E9: 97,308.00 | F9: 36,977,040.00 | G9: 7.00 | H9: 17,608.11 | I9: 100.00 | J9: 270.00 | K9: 6,162.84 | L9: 27,000.00 | M9: 2,160.00 | N9: 52,930.95 | O9: 10,000.00 | P9: 62,930.95 | R9: 8 | S9: Double Drum Roller 8Ton | T9: 42,000.00 | U9: 27,000.00 | V9: 10,000.00 | W9: 79,000.00 | Z9: 41,627.59
A10: Excavator (2 M3 ) | B10: 381,600.00 | C10: 0.08 | D10: 30,985.92 | E10: 412,585.92 | F10: 156,782,649.60 | G10: 7.00 | H10: 74,658.40 | I10: 200.00 | J10: 270.00 | K10: 26,130.44 | L10: 54,000.00 | M10: 4,320.00 | N10: 159,108.85 | O10: 10,000.00 | P10: 169,108.85 | R10: 9 | S10: Excavator (2 M3 ) | T10: 99,000.00 | U10: 54,000.00 | V10: 10,000.00 | W10: 163,000.00 | Z10: 99,062.86
A11: Motor Grader 270 HP | B11: 400,000.00 | C11: 0.08 | D11: 32,480.00 | E11: 432,480.00 | F11: 164,342,400.00 | G11: 7.00 | H11: 78,258.29 | I11: 232.00 | J11: 270.00 | K11: 27,390.40 | L11: 62,640.00 | M11: 5,011.20 | N11: 173,299.89 | O11: 10,000.00 | P11: 183,299.89 | R11: 10 | S11: Motor Grader 270 HP | T11: 110,000.00 | U11: 62,640.00 | V11: 10,000.00 | W11: 182,640.00 | Z11: 110,358.60
A12: Pneumatic Roller 23Ton | B12: 112,000.00 | C12: 0.08 | D12: 9,094.40 | E12: 121,094.40 | F12: 46,015,872.00 | G12: 7.00 | H12: 21,912.32 | I12: 100.00 | J12: 270.00 | K12: 7,669.31 | L12: 27,000.00 | M12: 2,160.00 | N12: 58,741.63 | O12: 10,000.00 | P12: 68,741.63 | R12: 11 | S12: Pneumatic Roller 23Ton | T12: 45,000.00 | U12: 27,000.00 | V12: 10,000.00 | W12: 82,000.00 | Z12: 44,675.22
A13: Plate Compactor 1.0Ton | B13: 6,000.00 | C13: 0.08 | D13: 487.20 | E13: 6,487.20 | F13: 2,465,136.00 | G13: 5.00 | H13: 1,643.42 | I13: 31.50 | J13: 270.00 | K13: 575.20 | L13: 8,505.00 | M13: 680.40 | N13: 11,404.02 | O13: 10,000.00 | P13: 21,404.02 | R13: 12 | S13: Plate Compactor 1.0Ton | T13: 5,000.00 | U13: 8,505.00 | V13: 10,000.00 | W13: 23,505.00 | Z13: 5,270.86
A14: Single Drum Sheep Foot Compactor, 11Ton | B14: 101,000.00 | C14: 0.08 | D14: 8,201.20 | E14: 109,201.20 | F14: 41,496,456.00 | G14: 7.00 | H14: 19,760.22 | I14: 110.00 | J14: 270.00 | K14: 6,916.08 | L14: 29,700.00 | M14: 2,376.00 | N14: 58,752.29 | O14: 10,000.00 | P14: 68,752.29 | R14: 13 | S14: Single Drum Sheep Foot Compactor, 11Ton | T14: 43,000.00 | U14: 29,700.00 | V14: 10,000.00 | W14: 82,700.00 | Z14: 42,859.62
A15: Single Drum Soil Compactor, 10Ton | B15: 109,282.38 | C15: 0.08 | D15: 8,873.73 | E15: 118,156.11 | F15: 44,899,321.41 | G15: 7.00 | H15: 21,380.63 | I15: 100.00 | J15: 270.00 | K15: 7,483.22 | L15: 27,000.00 | M15: 2,160.00 | N15: 58,023.85 | O15: 10,000.00 | P15: 68,023.85 | R15: 14 | S15: Single Drum Soil Compactor, 10Ton | T15: 41,000.00 | U15: 27,000.00 | V15: 10,000.00 | W15: 78,000.00 | Z15: 40,827.92
A16: Sweeping Machine | B16: 200,000.00 | C16: 0.08 | D16: 16,240.00 | E16: 216,240.00 | F16: 82,171,200.00 | G16: 7.00 | H16: 39,129.14 | I16: 80.00 | J16: 270.00 | K16: 13,695.20 | L16: 21,600.00 | M16: 1,728.00 | N16: 76,152.34 | O16: 10,000.00 | P16: 86,152.34 | R16: 15 | S16: Sweeping Machine | T16: 45,000.00 | U16: 21,600.00 | V16: 10,000.00 | W16: 76,600.00 | Z16: 44,681.70
A17: Tipper Truck- 16M3 | B17: 101,000.00 | C17: 0.13 | D17: 13,251.20 | E17: 114,251.20 | F17: 43,415,456.00 | G17: 5.00 | H17: 28,943.64 | I17: 140.00 | J17: 270.00 | K17: 10,130.27 | L17: 37,800.00 | M17: 3,024.00 | N17: 79,897.91 | O17: 10,000.00 | P17: 89,897.91 | R17: 16 | S17: Tipper Truck- 16M3 | T17: 61,000.00 | U17: 37,800.00 | V17: 10,000.00 | W17: 108,800.00 | Z17: 61,317.81
A18: Tipper Dumper Truck- 14M3 | B18: 118,000.00 | C18: 0.38 | D18: 44,981.60 | E18: 162,981.60 | F18: 61,933,008.00 | G18: 5.00 | H18: 41,288.67 | I18: 140.00 | J18: 270.00 | K18: 14,451.04 | L18: 37,800.00 | M18: 3,024.00 | N18: 96,563.71 | O18: 10,000.00 | P18: 106,563.71 | R18: 17 | S18: Tipper Dumper Truck- 14M3 | T18: 70,000.00 | U18: 37,800.00 | V18: 10,000.00 | W18: 117,800.00 | Z18: 70,058.82
A19: Tipping Trailler Truck- 35 Ton | B19: 145,000.00 | C19: 0.13 | D19: 19,024.00 | E19: 164,024.00 | F19: 62,329,120.00 | G19: 5.00 | H19: 41,552.75 | I19: 164.71 | J19: 270.00 | K19: 14,543.46 | L19: 44,470.59 | M19: 3,557.65 | N19: 104,124.44 | O19: 10,000.00 | P19: 114,124.44 | R19: 18 | S19: Tipping Trailler Truck- 35 Ton | T19: 88,000.00 | U19: 44,470.59 | V19: 10,000.00 | W19: 142,470.59 | Z19: 88,000.00
A20: Vibrators | B20: 6,000.00 | C20: 0.08 | D20: 487.20 | E20: 6,487.20 | F20: 2,465,136.00 | G20: 4.00 | H20: 2,054.28 | I20: 5.00 | J20: 270.00 | K20: 719.00 | L20: 1,350.00 | M20: 108.00 | N20: 4,231.28 | O20: 10,000.00 | P20: 14,231.28 | R20: 19 | S20: Vibrators | T20: 3,000.00 | U20: 1,350.00 | V20: 10,000.00 | W20: 14,350.00 | Z20: 2,579.07
A21: Water Tanker | B21: 115,000.00 | C21: 0.13 | D21: 15,088.00 | E21: 130,088.00 | F21: 49,433,440.00 | G21: 5.00 | H21: 32,955.63 | I21: 100.00 | J21: 270.00 | K21: 11,534.47 | L21: 27,000.00 | M21: 2,160.00 | N21: 73,650.10 | O21: 10,000.00 | P21: 83,650.10 | R21: 20 | S21: Water Tanker | T21: 52,000.00 | U21: 27,000.00 | V21: 10,000.00 | W21: 89,000.00 | Z21: 52,494.54
A22: Wheel Loader 2.5 M3 | B22: 220,000.00 | C22: 0.08 | D22: 17,864.00 | E22: 237,864.00 | F22: 90,388,320.00 | G22: 7.00 | H22: 43,042.06 | I22: 190.00 | J22: 270.00 | K22: 15,064.72 | L22: 51,300.00 | M22: 4,104.00 | N22: 113,510.78 | O22: 10,000.00 | P22: 123,510.78 | R22: 21 | S22: Wheel Loader 2.5 M3 | T22: 79,000.00 | U22: 51,300.00 | V22: 10,000.00 | W22: 140,300.00 | Z22: 78,893.07
A23: 750L Capacity Concrete Mixer | B23: 25,000.00 | C23: 0.13 | D23: 3,280.00 | E23: 28,280.00 | F23: 10,746,400.00 | G23: 5.00 | H23: 7,164.27 | I23: 25.00 | J23: 270.00 | K23: 2,507.49 | L23: 6,750.00 | M23: 540.00 | N23: 16,961.76 | O23: 10,000.00 | P23: 26,961.76 | R23: 22 | S23: 750L Capacity Concrete Mixer | T23: 45,000.00 | U23: 6,750.00 | V23: 10,000.00 | W23: 61,750.00

Sheet 03 Labour
A1: S/NO | B1: CATEGORY | C1: RATE/DY | D1: RATE/HR | E1: QTY | F1: DUR (12mths x 25dys) | G1: AMOUNT
A2: 1 | B2: Unskilled Labour | C2: 2,500.00 | D2: =C2/8 -> 312.50 | E2: 65.00 | F2: =11*25 -> 275.00 | G2: =F2*E2*C2 -> 44,687,500.00
A3: 2 | B3: Semi Skilled | C3: 3,500.00 | D3: =C3/8 -> 437.50 | E3: 40.00 | F3: =11*25 -> 275.00 | G3: =F3*E3*C3 -> 38,500,000.00
A4: 3 | B4: Skilled | C4: 5,000.00 | D4: 625.00 | E4: 18.00 | F4: 275.00 | G4: 24,750,000.00
A5: 4 | B5: Operator | C5: 10,000.00 | D5: 1,250.00 | E5: 7.00 | F5: 275.00 | G5: 19,250,000.00
G6: =SUM(G2:G5) -> 127,187,500.00

Sheet 04 Subcontract
A1: SUBCONTRACTOR ADJUDICATION
E2: Subcontractor 1 | H2: Subcontractor 2 | K2: Subcontractor 3
B3: ALUMINIUM WINDOWS AND SUB FRAMES | E3: =G19 -> 25,715,604.33 | H3: =J19 -> 25,690,538.14 | K3: =M19 -> 25,981,687.63
E4: =50000/G7 -> 0.22% | F4: Transportation | H4: =150000/J7 -> 0.67% | I4: Transportation | K4: =250000/M7 -> 1.05% | L4: Transportation
B5: Accepted Quotation | C5: Sub 2 | E5: 1.00% | F5: Stamp Duty | H5: 1.00% | I5: Stamp Duty | K5: 1.00% | L5: Stamp Duty
E6: 0.50% | F6: Special Charge | H6: 2.00% | I6: Special Charge | K6: 0.00% | L6: Special Charge
E7: Factor | F7: =ROUND(SUM(E4:E6),4)+1 -> 1.017 | G7: =E10*$C10+E13*$C13 -> 23,048,000.00 | H7: Factor | I7: =ROUND(SUM(H4:H6),4)+1 -> 1.037 | J7: =H10*$C10+H13*$C13 -> 22,317,000.00 | K7: Factor | L7: =ROUND(SUM(K4:K6),4)+1 -> 1.021 | M7: =K10*$C10+K13*$C13 -> 23,822,000.00
A8: REF | B8: DESCRIPTION | C8: QTY | D8: UNIT | E8: RATE | F8: ADJUSTED | G8: AMOUNT | H8: RATE | I8: ADJUSTED | J8: AMOUNT | K8: RATE | L8: ADJUSTED | M8: AMOUNT
B9: 1.23 WINDOWS, SCREENS AND LIGHTS
A10: 1.1.0 | B10: Aluminium Windows and Window frames, 1.5x1.5m high) finished with 5mm thick tinted glass, fixed to pre-installed 25mm square pipe subframe burined in concrete/blockworks | C10: =BOQ!C23 -> 86.00 | D10: nr | E10: 250,000 | F10: =E10*F$7 -> 254,300.00 | G10: =F10*$C10 -> 21,869,800.00 | H10: 245,000 | I10: =H10*I$7 -> 253,991.50 | J10: =I10*$C10 -> 21,843,269.00 | K10: 265,000 | L10: =K10*L$7 -> 270,432.50 | M10: =L10*$C10 -> 23,257,195.00
B12: 1.26 METAL WORK
A13: 2.1.0.2 | B13: General Metal work members, 25mm square pipe subframe; 1.5x1.5m high, buried in concrete/blockworks with cement moratr 1:5 | C13: =BOQ!C26 -> 86.00 | D13: nr | E13: 18,000 | F13: =E13*F$7 -> 18,309.60 | G13: =F13*$C13 -> 1,574,625.60 | H13: 14,500 | I13: =H13*I$7 -> 15,032.15 | J13: =I13*$C13 -> 1,292,764.90 | K13: 12,000 | L13: =K13*L$7 -> 12,246.00 | M13: =L13*$C13 -> 1,053,156.00
B14: Subtotal 1 | G14: =SUM(G10:G13) -> 23,444,425.60 | J14: =SUM(J10:J13) -> 23,136,033.90 | M14: =SUM(M10:M13) -> 24,310,351.00
B15: Discount Offered | E15: 2.5% | G15: =G14*E15 -> 586,110.64 | J15: 300,000.00 | K15: 5.0% | M15: =M14*K15 -> 1,215,517.55
B16: Subtotal 2 | G16: =G14-G15 -> 22,858,314.96 | J16: =J14-J15 -> 22,836,033.90 | M16: =M14-M15 -> 23,094,833.45
B17: VAT | C17: 7.5% | G17: =G$16*$C17 -> 1,714,373.62 | J17: =J$16*$C17 -> 1,712,702.54 | M17: =M$16*$C17 -> 1,732,112.51
B18: WHT | C18: 5.0% | G18: =G$16*$C18 -> 1,142,915.75 | J18: =J$16*$C18 -> 1,141,801.70 | M18: =M$16*$C18 -> 1,154,741.67
B19: TOTAL | G19: =SUM(G16:G18) -> 25,715,604.33 | J19: =SUM(J16:J18) -> 25,690,538.14 | M19: =SUM(M16:M18) -> 25,981,687.63
B20: Payment Term | E20: 50% | H20: 80% | K20: 65%
B21: Delivery Period | E21: 2 Weeks | H21: 1 Weeks | K21: 3 Weeks
B22: Completion Period | E22: 3 Weeks | H22: 1 Weeks | K22: 2 Weeks

Sheet 05 Built-in Preliminaries
A1: REF | B1: S/NO | C1: PRELIMINARY ITEM | D1: QTY | E1: RATE | F1: DUR | G1: AMOUNT | H1: FIXED | I1: TIME
A3: A | C3: PROJECT STAFF
B4: 1 | C4: Project Manager | D4: 1 | E4: 300,000 | F4: 12 | G4: =F4*E4*D4 -> 3,600,000
B5: 2 | C5: Quantity Surveyor | D5: 1 | E5: 250,000 | F5: 10 | G5: =F5*E5*D5 -> 2,500,000
B6: 3 | C6: Assistant QS | D6: 1 | E6: 180,000 | F6: 8 | G6: 1,440,000
B7: 4 | C7: Site Engineer | D7: 2 | E7: 200,000 | F7: 12 | G7: 4,800,000
B8: 5 | C8: Accountant | D8: 1 | E8: 145,000 | F8: 12 | G8: 1,740,000
G9: =SUM(G4:G8) -> 14,080,000 | I9: =G9 -> 14,080,000.00
A11: B | C11: SITE ACCOMMODATION
B12: 1 | C12: Site Office (Portacabin- 80m2) | D12: 80 | E12: 85,000 | F12: 1 | G12: =F12*E12*D12 -> 6,800,000 | H12: =G12 -> 6,800,000.00
B13: 2 | C13: staff Accommodation (2 flats) | D13: 2 | E13: 1,200,000 | F13: 1 | G13: 2,400,000 | H13: =G13 -> 2,400,000.00
G14: =SUM(G12:G13) -> 9,200,000
A16: C | C16: TRANSPORTATION
B17: 1 | C17: Worker Bus (Hiace) | D17: 1 | E17: 26,000,000 | F17: 1 | G17: =F17*E17*D17 -> 26,000,000
B18: 2 | C18: Site Project Vehicle (Hilux) | D18: 1 | E18: 22,550,000 | F18: 1 | G18: 22,550,000
E19: Instalmental Recovery | F19: 4 | G19: =SUM(G17:G18)/F19 -> 12,137,500 | H19: =G19 -> 12,137,500.00 | I19: =H19*3 -> 36,412,500.00 | J19: =I19 -> 36,412,500.00
A21: D | C21: SCAFFOLDING/SHUTTERING
B22: 1 | C22: Scaffolding (2000m2) | D22: 2000 | E22: 250 | F22: =12*25 -> 300 | G22: =F22*E22*D22 -> 150,000,000
B23: 2 | C23: Shuttering | D23: 1500 | E23: 80 | F23: =F22 -> 300 | G23: 36,000,000
E24: Instalmental Recovery | F24: 5 | G24: =SUM(G22:G23)/F24 -> 37,200,000 | I24: =G24*F24 -> 186,000,000.00 | J24: =I24-G24 -> 148,800,000.00
A26: E | C26: SITE EQUIPMENT
B27: 1 | C27: CAT Bulldozer D9 | D27: 1 | E27: ='02 Equipment'!T5 -> 236,000 | F27: =6*25 -> 150 | G27: =F27*E27*D27 -> 35,400,000
B28: 2 | C28: Compressor 7Bar | D28: 2 | E28: ='02 Equipment'!T7 -> 41,000 | F28: =4*25 -> 100 | G28: 8,200,000
B29: 3 | C29: Double Drum Roller 10Ton | D29: 1 | E29: ='02 Equipment'!T8 -> 41,000 | F29: =3*25 -> 75 | G29: 3,075,000
B30: 4 | C30: Double Drum Roller 8Ton | D30: 1 | E30: ='02 Equipment'!T9 -> 42,000 | F30: =F29 -> 75 | G30: 3,150,000
B31: 5 | C31: Excavator (2 M3 ) | D31: 1 | E31: ='02 Equipment'!T10 -> 99,000 | F31: =6*25 -> 150 | G31: 14,850,000
B32: 6 | C32: Motor Grader 270 HP | D32: 1 | E32: ='02 Equipment'!T11 -> 110,000 | F32: =F30 -> 75 | G32: 8,250,000
G33: =SUM(G27:G32) -> 72,925,000 | I33: =G33 -> 72,925,000.00
A35: F | C35: INSURANCE & BOND
B36: 1 | C36: Project Insurance | D36: 1 | E36: 542,600,000 | F36: 0.25% | G36: =F36*E36*D36 -> 1,356,500
B37: 2 | C37: Equipment Insurance | D37: 1 | E37: =G33 -> 72,925,000 | F37: 5.00% | G37: =F37*E37*D37 -> 3,646,250
B38: 3 | C38: Advance Payment Guarantee | D38: 15.0% | E38: =E36 -> 542,600,000 | F38: 0.20% | G38: 162,780
B39: 4 | C39: Performance Bond | D39: 10.0% | E39: =E38 -> 542,600,000 | F39: 0.20% | G39: 108,520
B40: 5 | C40: Workers Insurance | D40: 1 | E40: ='03 Labour'!G6 -> 127,187,500 | F40: 6.00% | G40: 7,631,250
G41: =SUM(G36:G40) -> 12,905,300 | H41: =G41 -> 12,905,300.00
C44: SUMMARY OF BUILT-IN PREL.
B45: A | C45: =C3 -> PROJECT STAFF | G45: =G9 -> 14,080,000
B46: B | C46: =C11 -> SITE ACCOMMODATION | G46: =G14 -> 9,200,000
B47: C | C47: =C16 -> TRANSPORTATION | G47: =G19 -> 12,137,500
B48: D | C48: =C21 -> SCAFFOLDING/SHUTTERING | G48: =G24 -> 37,200,000
B49: E | C49: =C26 -> SITE EQUIPMENT | G49: =G33 -> 72,925,000
B50: F | C50: =C35 -> INSURANCE & BOND | G50: =G41 -> 12,905,300
G51: =SUM(G45:G50) -> 158,447,800.0 | H51: =SUM(H2:H50) -> 34,242,800.00 | I51: =SUM(I2:I50) -> 309,417,500.00
H52: FIXED | I52: TIME
H53: =H51+I51 -> 343,660,300.00

Sheet 06 Material Transp.
A1: MATERIAL TRANSPORTATION COST
B3: Distance to Quarry | C3: 150.0 | D3: Km
B4: Truck Travel Speed | C4: 55.0 | D4: Km / Hr.
B5: Travel time (minutes) | C5: =C3/C4*60 -> 163.64 | D5: Min.
B6: Total Time Return Trip | C6: =C5*2+10+5 -> 342.27 | D6: Min.
D7: Use:
B8: Trips /Tipper/ day | C8: =8*60/C6 -> 1.40 | D8: =ROUND(C8,0) -> 1.0 | E8: Trips/Day
B10: Delivery Cost of Cement Transportation | C10: 350,000.0 | D10: Cost / Trip
B11: Quantity of cement per load | C11: 600.0
B12: CEMENT DELIVERY COST | C12: =C10/C11 -> 583.33 | D12: N / Bag
B15: AGGREGATE HAULAGE COST
A16: =D8 -> 1.0 | B16: Tipping Trailler Truck- 35 Ton | C16: =VLOOKUP(B16,'02 Equipment'!$S$2:$W$22,4,) -> 10,000.00 | D16: =C16*A16 -> 10,000.00
A17: 1.0 | B17: Semi Skilled | C17: =VLOOKUP(B17,'03 Labour'!$B$2:$C$5,2,) -> 3,500.00 | D17: =C17*A17 -> 3,500.00
A18: 1.0 | B18: Other Fees per Trip | C18: 6,000.00 | D18: =C18*A18 -> 6,000.00
D19: =SUM(D16:D18) -> 19,500.00
B20: TRUCK CAPACITY | C20: 35.0 | D20: tons/ Trip
B22: AGGREGATE DELIVERY COST | D22: =D19/D8/C20 -> 557.14 | E22: N/TON

Sheet 07 ExtraOver Haulage
A1: CALCULATION FOR EXTRA COST OF HAULAGE PER M3/KM
B3: CYCLE TIME CALCULATION
B4: Distance From Quarry/Burrow Pit To Site | C4: 12.00 | D4: Km
B5: Tipper Speed ( Km/Hr.) | C5: 45.00 | D5: Km / Hr.
B6: Time Of Travel ( Min.) | C6: =C4/C5*60 -> 16.00 | D6: Min.
B7: Time Of One Trip (Min.) | C7: =C6*2+10+10 -> 52.00 | D7: Min.
B8: No Of Trips /Tipper/Day | C8: =ROUND((6*60)/C7,0) -> 7.00
B10: COST OF USING EQUIPMENT
A11: NO. | B11: ITEM | C11: Cost ( N/day ) | D11: Total /day
A12: 1.00 | B12: Tipper Dumper Truck- 14M3 | C12: =VLOOKUP(B12,'02 Equipment'!$S$2:$W$22,4,) -> 10,000.00 | D12: =C12*A12 -> 10,000.00 | E12: COST/ DAY
A13: 0.50 | B13: Wheel Loader 2.5 M3 | C13: =VLOOKUP(B13,'02 Equipment'!$S$2:$W$22,4,) -> 10,000.00 | D13: =C13*A13 -> 5,000.00 | E13: COST/ DAY
A14: 2.00 | B14: Operator | C14: =VLOOKUP(B14,'03 Labour'!$B$2:$C$5,2,) -> 10,000.00 | D14: =C14*A14 -> 20,000.00 | E14: COST/ DAY
C15: Total | D15: =SUM(D12:D14) -> 35,000.00 | E15: COST/ DAY
B17: HAULAGE COST
B18: Total Distance Travelled by Tipper/ Day | C18: =C4*2 -> 24.00 | D18: km
B19: Truck capacity/ Trip (20Ton) | C19: =20/1.6 -> 12.50 | D19: m3/TRIP
B20: No. Of Trips / Day | C20: =C8 -> 7.00 | D20: TRIP/DAY
B21: Total Qty hauled / Day | C21: =C20*C19 -> 87.50 | D21: m3
B23: The Cost of Extra Over for Haulage (KM/M3) | D23: =D15/C18/C21 -> 16.67 | E23: COST/KM/m3

Sheet 08 Concrete
A2: Density | B2: CONCRETE
A3: 1.6 | B3: sand | C3: ='01 Material Prices'!$C$5 -> 3,000.00 | D3: m3 | E3: 20ton
A4: 2.1 | B4: granite | C4: ='01 Material Prices'!C4 -> 12,500.00 | D4: m3 | E4: 30ton
B6: Mix Ratio | C6: Cement | D6: Sand | E6: Granite | F6: m3
C7: 1.00 | D7: 2.00 | E7: 4.00 | F7: =SUM(C7:E7) -> 7.00
B9: Shrinkage | C9: 45%
B10: Entrained Air | C10: 2%
B11: Water Cement Ratio | C11: 0.45
B12: Net Volume of Wet Mix | F12: =(1-C10)*F7 -> 6.86 | G12: m3
B14: Standard material capacity
A15: =C7/F12+(C7/F12)*C9 -> 0.211 | B15: Cement | C15: 3,850.00 | D15: Bag | E15: =A15/0.035 -> 6.04 | F15: =E15*C15 -> 23,250.73
A16: =D7/F12+(D7/F12)*C9 -> 0.423 | B16: Sand | C16: =C3 -> 3,000.00 | D16: m3 | F16: =C16*A16 -> 1,268.22
A17: =E7/F12+(E7/F12)*C9 -> 0.845 | B17: Granite | C17: =C4 -> 12,500.00 | D17: m3 | F17: =C17*A17 -> 10,568.51
A18: =A15*C11*1000 -> 95.117 | B18: Water for works | C18: 5.00 | D18: liter | F18: =C18*A18 -> 475.58
F19: =SUM(F15:F18) -> 35,563.05
B20: waste | C20: 5% | F20: =F19*C20 -> 1,778.15
F21: =SUM(F19:F20) -> 37,341.20
B23: Mixing & Placement
A24: 1.000 | B24: Concrete mixer | C24: ='02 Equipment'!W23 -> 61,750.00 | D24: day | E24: =C24*A24 -> 61,750.00
A25: 1.000 | B25: Vibrator | C25: ='02 Equipment'!W20 -> 14,350.00 | D25: day | E25: =C25*A25 -> 14,350.00
A26: 1.000 | B26: Operator | C26: =VLOOKUP(B26,'03 Labour'!$B$2:$D$5,2,) -> 10,000.00 | D26: day | E26: =C26*A26 -> 10,000.00
A27: 20.000 | B27: Unskilled Labour | C27: =VLOOKUP(B27,'03 Labour'!$B$2:$D$5,2,) -> 2,500.00 | D27: day | E27: =C27*A27 -> 50,000.00
E28: =SUM(E24:E27) -> 136,100.00
B30: Daily Output of Gang | C30: =150/6 -> 25.00 | D30: m3
E31: =E28/C30 -> 5,444.00
B33: Concrete | E33: =F21 -> 37,341.20 | F33: Material | G33: =E33/E35 -> 87%
B34: Mixing & Placement | E34: =E31 -> 5,444.00 | F34: Labour | G34: =E34/E35 -> 13%
E35: =SUM(E33:E34) -> 42,785.20

Sheet 09 Asphalt Binder
A1: BREAKDOWN OF ASPHALT BINDER COURSE
B3: COST OF MATERIAL | D3: BINDER COURSE
B5: Asphalt concrete Purchased from Plant | D5: 32,000.0 | E5: N/TON
B6: Transportation Cost (18km radius) | D6: 2,500.0 | E6: N/Ton
B7: Toll Fees / 35ton Truck | C7: 8,000.0
B8: Toll fee per Ton | D8: =C7/35 -> 228.6 | E8: N/Ton
B9: Material Cost to Site (Ton) | D9: =SUM(D5:D8) -> 34,728.6 | E9: N/TON
B11: Concrete Thickness | C11: 60.0 | D11: mm
B12: Qty of Asphalt Concrete / m2 | C12: =1*1*C11/1000 -> 0.060 | D12: m3/m2
B14: Compacted Density of Asphalt (Ton/m3) | C14: 2.35 | D14: Ton / m3
B15: Cost of Material per M2 | D15: =D9*C12*C14 -> 4,896.73
B16: Wastes (10%) | C16: 10% | D16: =D15*C16 -> 489.67
A17: A | B17: TOTAL COST OF EQUIPMENT | C17: =SUM(D15:D16) -> 5,386.40 | D17: Cost/M2
B19: Work Output Rate per day | C19: 4,000.0 | D19: M2 / DAY
B21: COST OF EQUIPMENT
A22: NO. | B22: SPREADING & COMPACTION | C22: Running Cost | D22: Total ( N /DAY )
A23: 1.00 | B23: Asphalt Paver (2.5m) | C23: =VLOOKUP(B23,'02 Equipment'!$S$2:$W$22,4,) -> 10,000.00 | D23: =C23*A23 -> 10,000.00
A24: 1.00 | B24: Double Drum Roller 10Ton | C24: =VLOOKUP(B24,'02 Equipment'!$S$2:$W$22,4,) -> 10,000.00 | D24: 10,000.00
A25: 1.00 | B25: Sweeping Machine | C25: =VLOOKUP(B25,'02 Equipment'!$S$2:$W$22,4,) -> 10,000.00 | D25: 10,000.00
A26: 1.00 | B26: Pneumatic Roller 23Ton | C26: =VLOOKUP(B26,'02 Equipment'!$S$2:$W$22,4,) -> 10,000.00 | D26: 10,000.00
A27: 1.00 | B27: Compressor 7Bar | C27: =VLOOKUP(B27,'02 Equipment'!$S$2:$W$22,4,) -> 10,000.00 | D27: 10,000.00
A28: 1.00 | B28: Double Drum Roller 8Ton | C28: =VLOOKUP(B28,'02 Equipment'!$S$2:$W$22,4,) -> 10,000.00 | D28: 10,000.00
D29: =SUM(D23:D28) -> 60,000.0
A30: B | B30: TOTAL COST OF EQUIPMENT | C30: =D29/C19 -> 15.00 | D30: Cost/M2
B33: LABOUR COST
A34: 6.00 | B34: Operator | C34: =VLOOKUP(B34,'03 Labour'!$B$2:$C$5,2,) -> 10,000.00 | D34: =C34*A34 -> 60,000.00
A35: 5.00 | B35: Skilled | C35: =VLOOKUP(B35,'03 Labour'!$B$2:$C$5,2,) -> 5,000.00 | D35: =C35*A35 -> 25,000.00
A36: 10.00 | B36: Unskilled Labour | C36: =VLOOKUP(B36,'03 Labour'!$B$2:$C$5,2,) -> 2,500.00 | D36: =C36*A36 -> 25,000.00
D37: =SUM(D34:D36) -> 110,000.0
A38: C | B38: TOTAL COST OF LABOUR | C38: =D37/C19 -> 27.50 | D38: Cost/M2
A40: A+B+C | B40: COST OF ASPHALT BINDER COURSE | C40: =C38+C30+C17 -> 5,428.90 | D40: Cost/M2

Sheet 10 Blockworks
B2: BLOCK WORK | C2: 230mm | H2: BLOCK WORK | I2: 150mm
B3: 230 Block supplied to site | C3: ='01 Material Prices'!C9 -> 270.00 | H3: 150 Block supplied to site | I3: ='01 Material Prices'!C10 -> 225.00
B5: 1 m2 of Block wall | C5: 10.00 | D5: pcs | E5: =C5*C3 -> 2,700.00 | H5: 1 m2 of Block wall | I5: 10.00 | J5: pcs | K5: =I5*I3 -> 2,250.00
B6: Waste | C6: 10% | E6: =E5*C6 -> 270.00 | H6: Waste | I6: =C6 -> 10% | K6: =K5*I6 -> 225.00
E7: =SUM(E5:E6) -> 2,970.00 | K7: =SUM(K5:K6) -> 2,475.00
B9: Mortar | H9: Mortar
B10: Mix Ratio | C10: 1.00 | D10: 6.00 | E10: =D10+C10 -> 7.00 | H10: Mix Ratio | I10: 1.00 | J10: 6.00 | K10: =J10+I10 -> 7.00
B12: Cement | E12: =C10/E10 -> 0.14 | H12: Cement | K12: =I10/K10 -> 0.14
B13: Add shrinkage | C13: 40% | E13: =C13*E12 -> 0.06 | H13: Add shrinkage | I13: =C13 -> 40% | K13: =I13*K12 -> 0.06
E14: =SUM(E12:E13) -> 0.20 | K14: =SUM(K12:K13) -> 0.20
B15: Cement (volume/bag) | C15: 0.0350 | D15: m3/bag | H15: Volume per bag | I15: 0.0350 | J15: m3
A16: =E14/C15 -> 5.714 | B16: Total Bags | C16: ='01 Material Prices'!$C$3 -> 3,785.63 | E16: =ROUND(C16*A16,2) -> 21,632.14 | G16: =K14/I15 -> 5.714 | H16: Total Bags | I16: ='01 Material Prices'!$C$3 -> 3,785.63 | K16: =ROUND(I16*G16,2) -> 21,632.14
B18: Sand | E18: =D10/E10 -> 0.86 | H18: Sand | K18: =J10/K10 -> 0.86
B19: Add shrinkage | C19: =C13 -> 40% | E19: =C19*E18 -> 0.34 | H19: Add shrinkage | I19: =I13 -> 40% | K19: =I19*K18 -> 0.34
E20: =SUM(E18:E19) -> 1.20 | K20: =SUM(K18:K19) -> 1.20
A21: =E20 -> 1.200 | B21: Cost per m3 of sand | C21: ='01 Material Prices'!$C$5 -> 3,000.00 | E21: =C21*A21 -> 3,600.00 | G21: =K20 -> 1.200 | H21: Cost per m3 of sand | I21: =C21 -> 3,000.00 | K21: =I21*G21 -> 3,600.00
B23: Mortar | E23: =E21+E16 -> 25,232.14 | H23: Mortar | K23: =K21+K16 -> 25,232.14
B24: Waste | C24: 20% | E24: =E23*C24 -> 5,046.43 | H24: Waste | I24: =C24 -> 20% | K24: =K23*I24 -> 5,046.43
E25: =SUM(E23:E24) -> 30,278.57 | K25: =SUM(K23:K24) -> 30,278.57
B26: Plaster/ m2 of wall | C26: =((0.475*0.25*0.225)-((0.45*0.225*0.225)+(0.15*0.15*0.025*2)))*C5 -> 0.0281 | D26: m3/m2 | H26: Plaster/ m2 of wall | I26: =((0.475*0.25*0.15)-((0.45*0.225*0.15)+(0.075*0.15*0.025*2)))*I5 -> 0.0206 | J26: m3/m2
B28: Cost/ m2 of Mortar | E28: =E25*C26 -> 851.58 | H28: Cost/ m2 of Mortar | K28: =K25*I26 -> 624.50
B30: Labour Laying | H30: Labour Laying
A31: 2.000 | B31: Mason | C31: 4,000.00 | D31: per day | E31: =C31*A31 -> 8,000.00 | G31: 2.000 | H31: Mason | I31: 4,000.00 | J31: per day | K31: =I31*G31 -> 8,000.00
A32: 1.000 | B32: Labour | C32: 2,000.00 | D32: per day | E32: =C32*A32 -> 2,000.00 | G32: 1.000 | H32: Labour | I32: 2,000.00 | J32: per day | K32: =I32*G32 -> 2,000.00
E33: =SUM(E31:E32) -> 10,000.00 | K33: =SUM(K31:K32) -> 10,000.00
B34: Output/ day | C34: 150.00 | D34: blocks/ ay | H34: Output/ day | I34: 150.00 | J34: blocks/ ay
C35: =C34/C5 -> 15.00 | D35: m2 | I35: =I34/I5 -> 15.00 | J35: m2
B36: Cost/ m2 | E36: =E33/C35 -> 666.67 | H36: Cost/ m2 | K36: =K33/I35 -> 666.67
B38: Total | H38: Total
B39: Blocks | E39: =E7 -> 2,970.00 | H39: Blocks | K39: =K7 -> 2,475.00
B40: Mortar | E40: =E28 -> 851.58 | H40: Mortar | K40: =K28 -> 624.50
B41: Labour | E41: =E36 -> 666.67 | H41: Labour | K41: =K36 -> 666.67
B42: Blockwork | C42: Cost/m2 | E42: =SUM(E39:E41) -> 4,488.25 | H42: Blockwork | I42: Cost/m2 | K42: =SUM(K39:K41) -> 3,766.16
K43: =K42*F2 -> 0.00
B45: Filled solid with concrete | H45: Filled solid with concrete
B46: Blocks | E46: =E7 -> 2,970.00 | H46: Blocks | K46: =K7 -> 2,475.00
A47: =0.15*0.15*0.25*2*C5 -> 0.1125 | B47: Concrete | C47: m3 | D47: 35,000.00 | E47: =D47*A47 -> 3,937.50 | G47: =0.075*0.15*0.25*2*I5 -> 0.0563 | H47: Concrete | I47: m3 | J47: =D47 -> 35,000.00 | K47: =J47*G47 -> 1,968.75
B48: Mortar | E48: =E28 -> 851.58 | H48: Mortar | K48: =K28 -> 624.50
B49: Labour | E49: =E36 -> 666.67 | H49: Labour | K49: =K36 -> 666.67
B50: Blockwork | C50: Cost/m2 | E50: =SUM(E46:E49) -> 8,425.75 | H50: Blockwork | I50: Cost/m2 | K50: =SUM(K46:K49) -> 5,734.91

Sheet 11 Laterite Fillings
A1: Break Down of Laterite Backfilling
B3: Distance To Brorrow Pit | C3: 10.00 | D3: Km
B4: Travel Speed ( Km/Hr.) | C4: 40.00 | D4: Km / Hr.
B5: Time Of One Direction ( Min.) | C5: =C3/C4*60 -> 15.00 | D5: Min.
B6: Time Of One Trip (Min.) | C6: =C5*2+10+10 -> 50.00 | D6: Min.
B7: No Of Trips /Tipper/Day | C7: =ROUND((8*60)/C6,0) -> 10.00 | D7: Trips
B9: Daily Work Output from Experience | C9: 500.00 | D9: M3/ day
B10: Using 11 m3/ Tipper Load | C10: =ROUND(C9/(C7*11),0) -> 5.00
B12: COST OF EQUIP AT BURROW PIT | C12: Running Cost | D12: Total /day
A13: 1.00 | B13: CAT Bulldozer D9 | C13: =VLOOKUP(B13,'02 Equipment'!$S$2:$W$22,4,) -> 10,000.00 | D13: =C13*A13 -> 10,000.00 | E13: COST/ DAY
A14: 1.00 | B14: Excavator (2 M3 ) | C14: =VLOOKUP(B14,'02 Equipment'!$S$2:$W$22,4,) -> 10,000.00 | D14: =C14*A14 -> 10,000.00 | E14: COST/ DAY
C15: Total | D15: =SUM(D13:D14) -> 20,000.00 | E15: COST/ DAY
B16: Cost of Equipment | C16: =D15/C9 -> 40.00
B17: Borrow Pit Fee | C17: =((2800)/11) -> 254.55
A18: 1 | B18: Total cost of LaterIte Burrowing | C18: =SUM(C16:C17) -> 294.55
B20: COST OF MATERIAL HAULAGE | C20: Running Cost | D20: Total /day
A21: =C10 -> 5.00 | B21: Tipper Truck- 16M3 | C21: =VLOOKUP(B21,'02 Equipment'!$S$2:$W$22,4,) -> 10,000.00 | D21: =C21*A21 -> 50,000.00 | E21: COST/ DAY
A22: 1.00 | B22: Wheel Loader 2.5 M3 | C22: =VLOOKUP(B22,'02 Equipment'!$S$2:$W$22,4,) -> 10,000.00 | D22: =C22*A22 -> 10,000.00 | E22: COST/ DAY
A23: 8.00 | B23: Semi Skilled | C23: =VLOOKUP(B23,'03 Labour'!$B$2:$C$5,2,) -> 3,500.00 | D23: =C23*A23 -> 28,000.00 | E23: COST/ DAY
C24: Total | D24: =SUM(D21:D23) -> 88,000.00 | E24: COST/ DAY
A25: 2 | B25: Transportation Cost | C25: =D24/C9 -> 176.00
A27: A=1+2 | B27: The Cost of Borrow Pit Equipment | C27: =C18+C25 -> 470.55 | D27: COST/ m3
B30: COST OF MATERIAL | C30: Vendor Price
B31: 1 TRIP OF LATERITE | C31: 300.00 | D31: COST/ Ton | G31: For Material Supplied to Site
B32: Densite of Material (Laterite) | C32: 1.60 | D32: Ton/M3
A33: B | B33: COST OF MATERIAL/M3 | C33: =C31*C32 -> 480.00 | D33: COST/ M3 | G33: 2,600.00 | H33: COST/ m3
G34: =G33*0.075 -> 195.00 | H34: +VAT
A35: C=A+B | B35: COST OF LATERITE SUPPLIED (+10% SWELL) | C35: 1.10 | D35: =(C27+C33)*C35 -> 1,045.60 | E35: COST/ M3 | G35: =SUM(G33:G34) -> 2,795.00 | H35: COST/ M3
B38: COST OF COMPACTION | C38: Running Cost | D38: Total /day
A39: 1.00 | B39: Motor Grader 270 Hp | C39: =VLOOKUP(B39,'02 Equipment'!$S$2:$W$22,4,) -> 10,000.00 | D39: =A39*C39 -> 10,000.00
A40: 1.00 | B40: Water Tanker | C40: =VLOOKUP(B40,'02 Equipment'!$S$2:$W$22,4,) -> 10,000.00 | D40: =A40*C40 -> 10,000.00
A41: 1.00 | B41: Single Drum Soil Compactor, 10Ton | C41: =VLOOKUP(B41,'02 Equipment'!$S$2:$W$22,4,) -> 10,000.00 | D41: =A41*C41 -> 10,000.00
A42: 1.00 | B42: Single Drum Sheep Foot Compactor, 11Ton | C42: =VLOOKUP(B42,'02 Equipment'!$S$2:$W$22,4,) -> 10,000.00 | D42: =A42*C42 -> 10,000.00
A43: =SUM(A39:A42) -> 4.00 | B43: Semi Skilled | C43: =VLOOKUP(B43,'03 Labour'!$B$2:$C$5,2,) -> 3,500.00 | D43: =A43*C43 -> 14,000.00
D44: =SUM(D39:D43) -> 54,000.00 | E44: COST/ DAY
B46: Loss due to Compction (% 15) | C46: 15.00% | D46: =C46*D44 -> 8,100.00
B47: Subtotal Equipment cost of compaction | D47: =SUM(D44:D46) -> 62,100.00
A48: D | B48: COST OF COMPACTION | D48: =D47/C9 -> 124.20 | E48: COST/ M3 | G48: =D48 -> 124.20
A50: C+D | B50: COST TO PROVIDE AND PLACE LATERITE | D50: =ROUND(D35+D48,0) -> 1,170.00 | E50: COST/ M3 | G50: =ROUND(G35+G48,0) -> 2,919.00 | H50: COST/ M3

Sheet 12 Road Scarify
A1: BREAKDOWN OF PAVEMENT SCARIFICATION
B3: COST OF EQUIPMENTS | C3: Running Cost | D3: Total /day
A4: 1 | B4: CAT Bulldozer D9 | C4: =VLOOKUP(B4,'02 Equipment'!$S$2:$W$22,4,) -> 10,000.00 | D4: =C4*A4 -> 10,000.00 | E4: COST/ DAY
A5: 1 | B5: Wheel Loader 2.5 M3 | C5: =VLOOKUP(B5,'02 Equipment'!$S$2:$W$22,4,) -> 10,000.00 | D5: 10,000.00 | E5: COST/ DAY
A6: 2 | B6: Tipper Dumper Truck- 14M3 | C6: =VLOOKUP(B6,'02 Equipment'!$S$2:$W$22,4,) -> 10,000.00 | D6: 20,000.00 | E6: COST/ DAY
A7: 0.5 | B7: Motor Grader 270 Hp | C7: =VLOOKUP(B7,'02 Equipment'!$S$2:$W$22,4,) -> 10,000.00 | D7: 5,000.00 | E7: COST/ DAY
A8: 1 | B8: Single Drum Soil Compactor, 10Ton | C8: =VLOOKUP(B8,'02 Equipment'!$S$2:$W$22,4,) -> 10,000.00 | D8: 10,000.00 | E8: COST/ DAY
A9: 1 | B9: Water Tanker | C9: =VLOOKUP(B9,'02 Equipment'!$S$2:$W$22,4,) -> 10,000.00 | D9: 10,000.00 | E9: COST/ DAY
D10: =SUM(D4:D9) -> 65,000.00 | E10: COST/ DAY
B11: Output from Experience | C11: 1,500.00 | D11: M2/ DAY
A13: A | B13: Equipment Cost | D13: =D10/C11 -> 43.33 | E13: COST/ M2
B14: LABOUR COST
A15: 10.00 | B15: Operator | C15: =VLOOKUP(B15,'03 Labour'!$B$2:$C$5,2,) -> 10,000.00 | D15: =C15*A15 -> 100,000.00 | E15: COST/ DAY
A16: B | B16: Labour Cost | D16: =D15/C11 -> 66.67 | E16: COST/ M2
A18: A+B | B18: TOTAL COST | C18: =ROUND(D13+D16,0) -> 110.00 | D18: COST/ M2
B20: Project Information
B21: Surface Pavement structure: (Binder- 6cm + Wearing- 4cm) | C21: 0.10 | D21: m
C22: Total Cost Volume | D22: =C18/C21 -> 1,100.00
B23: Scarification Cost Max. 50m3 | C23: =D22*50 -> 55,000.00 | D23: COST/SUM

Sheet 13 Prime Coat
A1: BREAKDOWN OF PRIME COAT
B3: COST OF MATERIAL
B4: Supply Cost of MC-1 to Site | D4: 350,000.00 | E4: COST/TON
B5: VAT | C5: 7.50% | D5: =D4*C5 -> 26,250.00
D6: =SUM(D4:D5) -> 376,250.00 | E6: COST/TON
D7: =D6/1000 -> 376.25 | E7: COST/LITER
B8: Wastage | C8: 10% | D8: =C8*D7 -> 37.63 | E8: COST/LITER
D9: =SUM(D7:D8) -> 413.88 | E9: COST/LITER
B10: Application Rate | D10: 1.30 | E10: lit/m2
B11: Cost of MC-1 Application | E11: =D9*D10 -> 538.04 | F11: N/M2
B13: Sand Blinding | C13: L | D13: W | E13: Thick
B14: Sharp Sand Blinding | C14: 1 | D14: 1 | E14: 0.025
E15: =E14*D14*C14 -> 0.025
B16: Sharp Sand/m3 | C16: ='01 Material Prices'!C5 -> 3,000.00 | D16: /m3 | E16: =E15*C16 -> 75.00 | F16: N/M2
A18: A | B18: TOTAL MATERIAL COST | D18: =E16+E11 -> 613.04 | E18: Cost/M2
B21: COST OF EQUIPMENT | D21: Running Cost
A22: 1 | B22: Bitumen Sprayer | C22: =VLOOKUP(B22,'02 Equipment'!$S$2:$W$22,4,) -> 10,000.00 | D22: =C22*A22 -> 10,000.00 | E22: Cost/day
A23: 1 | B23: Compressor 7Bar | C23: =VLOOKUP(B23,'02 Equipment'!$S$2:$W$22,4,) -> 10,000.00 | D23: =C23*A23 -> 10,000.00 | E23: Cost/day
D24: =SUM(D22:D23) -> 20,000.00 | E24: Cost/day
B26: Daily Output | C26: 6,000.00 | D26: m2/day
A28: B | B28: TOTAL COST OF EQUIPMENT | D28: =D24/C26 -> 3.33 | E28: Cost/M2 | F28: =D24/C26 -> 3.33 | G28: N/M2
B31: COST OF LABOUR | D31: Total / day
A32: 10 | B32: Semi Skilled | C32: =VLOOKUP(B32,'03 Labour'!$B$2:$C$5,2,) -> 3,500.00 | D32: =C32*A32 -> 35,000.00
A34: C | B34: TOTAL COST OF LABOUR | D34: =D32/C26 -> 5.83 | E34: Cost/M2 | F34: =D32/C26 -> 5.83
A37: A+B+C | B37: COST OF MC-1 | D37: =D34+D28+D18 -> 622.20 | E37: Cost/M2
